fUST/lending_fUST_20240731
["ID","MTS","AMOUNT","RATE_DAILY","PERIOD"]
[333738112,1722430252576,-808.78988,0.00013698,2]
[333738113,1722430252585,-808.78988,0.00013698,2]
[333738114,1722430252595,-808.78988,0.00013698,2]
[333738115,1722430252605,-808.78988,0.00013698,2]
[333738116,1722430252614,-808.78988,0.00013698,2]
[333738117,1722430252624,-808.78988,0.00013698,2]
[333738118,1722430252633,-500.0,0.00013698,2]
[333738119,1722430252643,-808.789877,0.00013698,2]
[333738120,1722430252652,-505.07442751,0.00013698,2]
[333738121,1722430252661,-900.66,0.00013698,2]
[333738122,1722430252672,-500.0,0.00013698,2]
[333738123,1722430252682,-500.0,0.00013698,2]
[333738124,1722430252691,-3407.687408,0.00013698,2]
[333738125,1722430252701,-3407.687408,0.00013698,2]
[333738126,1722430252710,-3407.687408,0.00013698,2]
[333738127,1722430252719,-500.0,0.00013698,2]
[333738128,1722430252728,-3407.687408,0.00013698,2]
[333738129,1722430252738,-4776.88,0.00013698,2]
[333738130,1722430252747,-3407.687408,0.00013698,2]
[333738131,1722430252756,-6914.67,0.00013698,2]
[333738132,1722430252766,-3407.687408,0.00013698,2]
[333738133,1722430252775,-3407.687408,0.00013698,2]
[333738134,1722430252784,-3407.687408,0.00013698,2]
[333738135,1722430252793,-3407.687408,0.00013698,2]
[333738136,1722430252803,-2328.99338306,0.00013698,2]
[333738137,1722430253645,10000.0,0.00025,60]
[333738139,1722430305932,288.43290652,9.999e-05,2]
[333738140,1722430323703,263.66732951,9.999e-05,2]
[333738141,1722430341873,300.59714052,9.999e-05,2]
[333738142,1722430349398,319.61774118,9.999e-05,2]
[333738144,1722430387209,155.00618278,9.999e-05,2]
[333738145,1722430392597,155.52438264,9.999e-05,2]
[333738146,1722430400935,288.23584617,9.999e-05,2]
[333738147,1722430404289,602.2763395,9.999e-05,2]
[333738148,1722430408166,19458.21210286,9.999e-05,2]
[333738149,1722430408197,154.72922386,9.999e-05,2]
[333738150,1722430422829,309.39667648,9.999e-05,2]
[333738151,1722430422936,942.28494783,9.999e-05,2]
[333738152,1722430423154,19458.21210286,9.999e-05,2]
[333738153,1722430427829,300.59714052,9.999e-05,2]
[333738154,1722430432996,164.01707664,9.999e-05,2]
[333738155,1722430441931,413.77079619,9.999e-05,2]
[333738156,1722430442317,671.04374063,9.999e-05,2]
[333738157,1722430445962,176.43256407,9.999e-05,2]
[333738158,1722430448748,2378.2700728,9.97e-05,2]
[333738159,1722430448821,197.5167612,9.999e-05,2]
[333738160,1722430453594,155.30117958,9.999e-05,2]
[333738161,1722430461949,154.98988207,0.0001,2]
[333738162,1722430464403,155.22429925,9.999e-05,2]
[333738163,1722430464992,165.4780838,9.999e-05,2]
[333738164,1722430465144,154.82572926,9.999e-05,2]
[333738165,1722430475677,162.92919601,9.999e-05,2]
[333738166,1722430478126,241.38367714,9.999e-05,2]
[333738167,1722430488473,296.77167945,0.0001,2]
[333738168,1722430489092,250.27056712,9.999e-05,2]
[333738169,1722430489465,183.04447097,9.999e-05,2]
[333738170,1722430496166,154.72922386,9.999e-05,2]
[333738171,1722430497040,156.67847881,9.999e-05,2]
[333738172,1722430502825,271.06633737,0.0001,2]
[333738173,1722430511418,155.18666141,9.999e-05,2]
[333738174,1722430517999,942.28494783,9.999e-05,2]
[333738175,1722430520126,306.06944337,9.999e-05,2]
[333738176,1722430524584,157.39204075,9.999e-05,2]
[333738177,1722430524816,300.59714052,9.999e-05,2]
[333738178,1722430527664,209.61899477,9.999e-05,2]
[333738179,1722430532942,221.50873695,9.999e-05,2]
[333738180,1722430539814,300.59714052,9.999e-05,2]
[333738181,1722430540101,327.03408422,0.0001,2]
[333738182,1722430542909,179.95919478,9.999e-05,2]
[333738183,1722430549497,155.19557269,9.999e-05,2]
[333738184,1722430553192,10801.05688317,9.999e-05,2]
[333738185,1722430560879,154.78770702,0.0001,2]
[333738186,1722430561928,156.15141743,9.999e-05,2]
[333738187,1722430572090,161.7393251,9.999e-05,2]
[333738188,1722430575099,230.52213753,9.999e-05,2]
[333738189,1722430579795,348.31694634,9.999e-05,2]
[333738190,1722430583458,375.79677847,9.999e-05,2]
[333738191,1722430591194,156.60856073,9.999e-05,2]
[333738192,1722430595341,244.76265078,9.999e-05,2]
[333738193,1722430598040,233.0564762,9.999e-05,2]
[333738194,1722430599569,154.72922386,9.999e-05,2]
[333738195,1722430603925,938.1667542,9.999e-05,2]
[333738196,1722430619465,168.44930628,9.999e-05,2]
[333738198,1722430654827,300.59714052,9.999e-05,2]
[333738203,1722430695354,244.76265078,9.999e-05,2]
[333738204,1722430699524,155.04980045,9.999e-05,2]
[333738215,1722430765829,300.59714052,9.999e-05,2]
[333738216,1722430766063,2191.79566377,0.0001,2]
[333738224,1722430796414,224.85372085,9.999e-05,2]
[333738225,1722430828024,165.4780838,9.999e-05,2]
[333738226,1722430855047,24900.0,9.945e-05,2]
[333738227,1722430863832,300.59714052,9.999e-05,2]
[333738229,1722430876378,250.0,9.999e-05,2]
[333738230,1722430913395,30716.6717282,9.945e-05,2]
[333738231,1722430920092,409.9722388,9.974e-05,2]
[333738232,1722430928035,165.4780838,9.999e-05,2]
[333738233,1722430971832,292.18564832,9.999e-05,2]
[333738234,1722431035037,165.47985821,9.999e-05,2]
[333738235,1722431039352,1000.0,0.00013,9]
[333738236,1722431042936,813.13413846,9.999e-05,2]
[333738237,1722431106669,635.75253026,9.999e-05,2]
[333738238,1722431125295,1997.499217,9.731e-05,2]
[333738239,1722431143620,3782.59755445,9.999e-05,2]
[333738240,1722431164384,7407.05117866,9.999e-05,2]
[333738241,1722431186204,19447.75666053,9.999e-05,2]
[333738242,1722431191725,1197.4561923,9.808e-05,2]
[333738243,1722431204183,156.44936091,9.999e-05,2]
[333738244,1722431205622,218.32258632,9.999e-05,2]
[333738245,1722431215878,1130.19877891,9.999e-05,2]
[333738246,1722431254253,279.35753325,9.999e-05,2]
[333738247,1722431260433,196.26871937,9.999e-05,2]
[333738248,1722431270456,291.45867184,9.999e-05,2]
[333738249,1722431283142,531.35557493,9.999e-05,2]
[333738250,1722431293616,567.99228217,9.999e-05,2]
[333738251,1722431297777,195.39914182,9.999e-05,2]
[333738252,1722431306199,179.60556637,9.999e-05,2]
[333738253,1722431310323,600.24609405,9.999e-05,2]
[333738254,1722431311350,778.87203636,9.999e-05,2]
[333738255,1722431312075,202.16948791,9.999e-05,2]
[333738256,1722431321738,162.90193781,9.999e-05,2]
[333738257,1722431323637,188.04294313,9.999e-05,2]
[333738258,1722431324371,663.56673998,9.999e-05,2]
[333738259,1722431324845,530.59744488,9.999e-05,2]
[333738260,1722431325653,155.13669901,9.999e-05,2]
[333738261,1722431328708,209.65653934,9.999e-05,2]
[333738262,1722431330124,287.48002697,0.0001,2]
[333738263,1722431331586,156.65797586,9.999e-05,2]
[333738266,1722431342442,13696.1005343,9.749e-05,2]
[333738267,1722431351542,413.48920953,9.999e-05,2]
[333738268,1722431353101,403.32733275,9.999e-05,2]
[333738269,1722431353223,181.22338865,9.999e-05,2]
[333738270,1722431355294,257.98438268,9.999e-05,2]
[333738271,1722431362557,341.69630942,9.999e-05,2]
[333738272,1722431364133,-250.0,0.00010277,2]
[333738273,1722431364156,-250.0,0.00010305,2]
[333738274,1722431364179,-76.41851645,0.00010333,2]
[333738278,1722431371862,154.95236786,9.999e-05,2]
[333738279,1722431376219,404.34085405,9.999e-05,2]
[333738280,1722431382411,160.00381439,9.999e-05,2]
[333738281,1722431386218,353.71289471,9.999e-05,2]
[333738282,1722431386965,194.61181113,9.999e-05,2]
[333738286,1722431392961,319.40039305,9.999e-05,2]
[333738287,1722431393721,191.97542682,9.999e-05,2]
[333738288,1722431395384,154.90193854,9.999e-05,2]
[333738289,1722431414191,156.572996,9.999e-05,2]
[333738290,1722431414603,246.29525277,9.999e-05,2]
[333738304,1722431432038,-221.179074,0.00010345,2]
[333738305,1722431432049,-221.179074,0.00010374,2]
[333738306,1722431432059,-221.179074,0.00010402,2]
[333738307,1722431432068,-221.179074,0.00010431,2]
[333738308,1722431432077,-221.179074,0.00010459,2]
[333738309,1722431432087,-221.179074,0.00010487,2]
[333738310,1722431432098,-221.179074,0.00010516,2]
[333738311,1722431432109,-221.179074,0.00010544,2]
[333738312,1722431432119,-221.179074,0.00010572,2]
[333738313,1722431432128,-221.179074,0.00010601,2]
[333738314,1722431432138,-221.179074,0.00010629,2]
[333738315,1722431432148,-221.179074,0.00010658,2]
[333738316,1722431432158,-221.179074,0.00010686,2]
[333738317,1722431432170,-221.179074,0.00010714,2]
[333738318,1722431432182,-221.179074,0.00010743,2]
[333738319,1722431432193,-221.179074,0.00010771,2]
[333738320,1722431432204,-221.179074,0.000108,2]
[333738321,1722431432214,-221.179074,0.00010828,2]
[333738322,1722431432223,-221.179074,0.00010856,2]
[333738323,1722431432232,-221.179074,0.00010885,2]
[333738324,1722431432244,-300.0,0.00010958,2]
[333738325,1722431432254,-300.0,0.00010958,2]
[333738326,1722431432264,-166.666666,0.00010959,2]
[333738327,1722431432275,-409.85,0.00010959,2]
[333738328,1722431432285,-273.23,0.00010959,2]
[333738329,1722431432295,-594.37,0.00010959,2]
[333738330,1722431432304,-495.31,0.00010959,2]
[333738331,1722431432314,-412.76,0.00010959,2]
[333738332,1722431432326,-343.97,0.00010959,2]
[333738333,1722431432336,-286.64,0.00010959,2]
[333738334,1722431432345,-238.86,0.00010959,2]
[333738335,1722431432355,-199.05,0.00010959,2]
[333738336,1722431432365,-165.88,0.00010959,2]
[333738337,1722431432375,-153.0,0.00012065,2]
[333738338,1722431432385,-4908.231854,0.0001212,2]
[333738414,1722431440247,-829.42,0.00010959,2]
[333738416,1722431440259,-15384.20727567,0.0001212,2]
[333738418,1722431440269,-372.7663659,0.00012178,2]
[333738421,1722431440279,-166.666666,0.00012241,2]
[333738423,1722431440288,-201.273204,0.00012525,2]
[333738425,1722431440299,-493.72845005,0.00012525,2]
[333738427,1722431440309,-848.53287184,0.00012525,2]
[333738429,1722431440318,-294.1445528,0.00012778,2]
[333738430,1722431440329,-326.228744,0.00012887,2]
[333738431,1722431440341,-206.8816348,0.00012887,2]
[333738432,1722431440352,-153.0,0.00012887,2]
[333738433,1722431440363,-1060.23036188,0.000129,2]
[333738434,1722431440373,-164.661054,0.00012986,2]
[333738435,1722431440383,-1000.0,0.00013,6]
[333738436,1722431440394,-640.36,0.00013424,2]
[333738437,1722431440406,-150.0,0.00013437,2]
[333738438,1722431440417,-506.0,0.00013437,2]
[333738439,1722431440430,-1410.0,0.0001347,2]
[333738440,1722431440442,-4611.75526708,0.000135,2]
[333738441,1722431440454,-5000.0,0.0001368,2]
[333738442,1722431440465,-640.36,0.00013686,2]
[333738443,1722431440476,-640.36,0.00013687,2]
[333738444,1722431440489,-49079.73884471,0.00013688,2]
[333738458,1722431442503,309.41211775,9.999e-05,2]
[333738459,1722431442876,-16622.898118,0.00013688,2]
[333738607,1722431514320,157.64183891,9.999e-05,2]
[333738609,1722431529403,250.0,9.999e-05,2]
[333738610,1722431538605,905500.96650736,0.00025,60]
[333738611,1722431558323,208.48311322,9.999e-05,2]
[333738612,1722431587327,178512.70783093,0.00027,120]
[333738613,1722431597722,890.04294861,9.999e-05,2]
[333738614,1722431616380,495.85825119,9.999e-05,2]
[333738615,1722431898791,180.29524211,9.999e-05,2]
[333738616,1722431904472,2108.20847387,9.999e-05,2]
[333738617,1722431907314,533.38063441,9.999e-05,2]
[333738618,1722431911248,8707.16909317,9.999e-05,2]
[333738619,1722431913280,3784.56616261,9.999e-05,2]
[333738620,1722431921648,169.80150805,9.999e-05,2]
[333738621,1722431923861,189.97270859,9.999e-05,2]
[333738622,1722431925487,375.64530467,9.999e-05,2]
[333738623,1722431935055,4708.68993712,9.999e-05,2]
[333738624,1722431935455,16282.69856011,9.999e-05,2]
[333738626,1722431972914,1625.88982265,9.999e-05,2]
[333738628,1722431996169,3784.56616261,9.999e-05,2]
[333738641,1722432023479,2105.98821661,9.999e-05,2]
[333738652,1722432050077,4708.68993712,9.999e-05,2]
[333738654,1722432054416,16282.69856011,9.999e-05,2]
[333738658,1722432092196,3778.66033813,9.999e-05,2]
[333738659,1722432117679,309.44296324,9.999e-05,2]
[333738660,1722432130415,8330.69335666,9.999e-05,2]
[333738661,1722432154189,154.8653,9.999e-05,4]
[333738665,1722432358754,309.30406586,9.999e-05,4]
[333738666,1722432400465,250.0,9.999e-05,2]
[333738668,1722432416600,154.72922386,9.999e-05,2]
[333738669,1722432471711,165.41277873,9.999e-05,4]
[333738671,1722432515596,154.72922386,9.999e-05,2]
[333738673,1722432527140,16620.32532728,0.0001,2]
[333738675,1722432600007,190.54155228,9.999e-05,2]
[333738708,1722432632260,-300.0,0.00010857,2]
[333738709,1722432632270,-300.0,0.00010857,2]
[333738710,1722432632279,-6039.9835,0.00010858,2]
[333738711,1722432632298,-4639.34952236,0.00010858,2]
[333738712,1722432632307,-449.85,0.00010959,2]
[333738713,1722432632316,-374.87,0.00010959,2]
[333738714,1722432632326,-312.4,0.00010959,2]
[333738715,1722432632335,-260.33,0.00010959,2]
[333738717,1722432632345,-216.94,0.00010959,2]
[333738718,1722432632354,-180.78,0.00010959,2]
[333738720,1722432632363,-185.66006,0.00011615,2]
[333738722,1722432632373,-166.666666,0.00011694,2]
[333738724,1722432632382,-5213.60769264,0.00011893,2]
[333738744,1722432638028,-150.65,0.00010959,2]
[333738746,1722432638038,-15422.44272445,0.00011893,2]
[333738750,1722432638318,-473.21000055,0.00011893,2]
[333738759,1722432640103,-3780.73958236,0.00011893,2]
[333738760,1722432640113,-386.77258205,0.0001212,2]
[333738761,1722432640122,-185.66006,0.0001222,2]
[333738762,1722432640132,-164.661054,0.00012986,2]
[333738763,1722432640141,-191.54798985,0.00013487,2]
[333738764,1722432640150,-927.70156668,0.00013488,2]
[333738765,1722432640161,-640.36,0.00013687,2]
[333738766,1722432640171,-51904.7460753,0.00013688,2]
[333738767,1722432640181,-640.36,0.00013697,2]
[333738768,1722432640191,-640.36,0.00013697,2]
[333738769,1722432640200,-640.36,0.00013697,2]
[333738770,1722432640209,-640.36,0.00013697,2]
[333738771,1722432640218,-640.36,0.00013697,2]
[333738772,1722432640227,-640.36,0.00013697,2]
[333738773,1722432640235,-640.36,0.00013697,2]
[333738774,1722432640245,-640.36,0.00013697,2]
[333738775,1722432640255,-602.097926,0.00013697,2]
[333738776,1722432640277,-38.262074,0.00013697,2]
[333738777,1722432640286,-640.36,0.00013697,2]
[333738778,1722432640296,-266.739567,0.00013698,2]
[333738779,1722432640305,-151.0,0.00013698,2]
[333738780,1722432640314,-152.421719,0.00013698,2]
[333738781,1722432640324,-151.0,0.00013698,2]
[333738782,1722432640334,-151.0,0.00013698,2]
[333738783,1722432640344,-151.0,0.00013698,2]
[333738784,1722432640353,-151.0,0.00013698,2]
[333738785,1722432640363,-151.0,0.00013698,2]
[333738786,1722432640372,-521.2934289,0.00013698,2]
[333738787,1722432640382,-500.0,0.00013698,2]
[333738788,1722432640392,-503.74727842,0.00013698,2]
[333738789,1722432640401,-500.0,0.00013698,2]
[333738790,1722432640411,-500.0,0.00013698,2]
[333738791,1722432640421,-528.70473741,0.00013698,2]
[333738792,1722432640429,-151.0,0.00013698,2]
[333738793,1722432640439,-151.0,0.00013698,2]
[333738794,1722432640448,-500.0,0.00013698,2]
[333738795,1722432640458,-500.0,0.00013698,2]
[333738796,1722432640467,-286.87097525,0.00013698,2]
[333738824,1722432643101,-213.12902475,0.00013698,2]
[333738825,1722432643111,-422.94463536,0.00013698,2]
[333738840,1722432906918,-286.84,0.00010959,2]
[333738841,1722432906959,-239.04,0.00010959,2]
[333738842,1722432906996,-199.2,0.00010959,2]
[333738843,1722432907032,-166.0,0.00010959,2]
[333738844,1722432907068,-830.0,0.00010959,2]
[333738847,1722433047999,6597.39221111,3.4e-05,5]
[333738848,1722433287413,157.72474138,5e-05,2]
[333738850,1722433406112,7445.81872161,6.061e-05,2]
[333738851,1722433417927,341.87248912,6.061e-05,2]
[333738852,1722433424070,375.79677847,6.061e-05,2]
[333739151,1722433493764,154.72922386,9.999e-05,2]
[333739399,1722433515504,154.80649189,7.347e-05,2]
[333739524,1722433528065,154.71377951,7.347e-05,2]
[333739788,1722433582770,154.71377951,9.999e-05,2]
[333739789,1722433584131,154.71377951,9.999e-05,2]
[333739902,1722433615073,375.79677847,9.999e-05,2]
[333740047,1722433634285,261.35281686,8.905e-05,2]
[333740062,1722433638342,154.88678402,8.905e-05,2]
[333740174,1722433664685,341.52012972,9.999e-05,2]
[333740382,1722433691577,990.0,9.999e-05,2]
[333740538,1722433734151,154.80649189,9.999e-05,2]
[333740539,1722433735078,375.34235707,9.999e-05,2]
[333740540,1722433740394,156.44936091,9.999e-05,2]
[333740541,1722433768216,273.57313143,9.999e-05,2]
[333740542,1722433770927,157.7513945,9.999e-05,2]
[333740543,1722433773542,600.24609405,9.999e-05,2]
[333740544,1722433783279,267.60223643,0.0001,2]
[333740545,1722433787111,942.12512916,9.999e-05,2]
[333740546,1722433787894,162.95665863,9.999e-05,2]
[333740547,1722433801699,154.76012181,9.999e-05,2]
[333740548,1722433802751,303.06956169,9.999e-05,2]
[333740549,1722433802791,568.27807593,9.999e-05,2]
[333740550,1722433807424,533.38063441,9.999e-05,2]
[333740551,1722433807583,196.33497966,9.999e-05,2]
[333740552,1722433809332,531.35557493,9.999e-05,2]
[333740553,1722433811653,309.27320796,9.999e-05,2]
[333740554,1722433816073,154.82188073,9.999e-05,2]
[333740555,1722433816709,156.65797586,9.999e-05,2]
[333740556,1722433817114,942.12512916,9.999e-05,2]
[333740557,1722433820459,542.70996312,9.999e-05,2]
[333740558,1722433825964,154.80649189,9.999e-05,2]
[333740559,1722433826099,154.80649189,9.999e-05,2]
[333740560,1722433827252,287.48002697,0.0001,2]
[333740561,1722433831679,204.43824148,0.0001,2]
[333740592,1722433832265,-166.666666,0.00010959,2]
[333740594,1722433832275,-744.033334,0.00010959,2]
[333740596,1722433832287,-399.2131104,0.00010959,2]
[333740598,1722433832298,-225.04706201,0.00010959,2]
[333740600,1722433832309,-300.0,0.00011105,2]
[333740602,1722433832319,-300.0,0.00011105,2]
[333740604,1722433832328,-24900.0,0.00011106,2]
[333740606,1722433832338,-250.0,0.00011166,2]
[333740608,1722433832348,-250.0,0.00011196,2]
[333740610,1722433832358,-166.666666,0.00011215,2]
[333740614,1722433832367,-250.0,0.00011227,2]
[333740617,1722433832376,-250.0,0.00011258,2]
[333740619,1722433832386,-250.0,0.00011288,2]
[333740621,1722433832396,-250.0,0.00011319,2]
[333740622,1722433832405,-250.0,0.00011349,2]
[333740625,1722433832415,-250.0,0.0001138,2]
[333740627,1722433832425,-250.0,0.00011411,2]
[333740629,1722433832434,-250.0,0.00011441,2]
[333740631,1722433832445,-166.666666,0.00011472,2]
[333740633,1722433832455,-250.0,0.00011472,2]
[333740635,1722433832464,-250.0,0.00011503,2]
[333740637,1722433832474,-250.0,0.00011533,2]
[333740639,1722433832483,-250.0,0.00011564,2]
[333740641,1722433832495,-250.0,0.00011594,2]
[333740643,1722433832504,-250.0,0.00011625,2]
[333740645,1722433832514,-250.0,0.00011656,2]
[333740647,1722433832523,-250.0,0.00011686,2]
[333740649,1722433832533,-250.0,0.00011717,2]
[333740650,1722433832542,-166.666666,0.00011728,2]
[333740652,1722433832552,-250.0,0.00011748,2]
[333740655,1722433832562,-166.666666,0.00011985,2]
[333740657,1722433832571,-203.59326594,0.00012019,2]
[333740659,1722433832581,-191.54798985,0.00012019,2]
[333740661,1722433832591,-201.54843451,0.0001212,2]
[333740663,1722433832601,-288.23560711,0.0001212,2]
[333740665,1722433832611,-240.55889109,0.0001212,2]
[333740667,1722433832622,-521.86930577,0.0001212,2]
[333740669,1722433832631,-404.47935249,0.0001212,2]
[333740671,1722433832641,-188.04294313,0.0001212,2]
[333740673,1722433832651,-156.62454437,0.0001212,2]
[333740675,1722433832661,-162.31655812,0.0001212,2]
[333740677,1722433832672,-160.00381439,0.0001212,2]
[333740679,1722433832681,-157.69808826,0.0001212,2]
[333740681,1722433832691,-154.80649189,0.0001212,2]
[333740683,1722433832701,-848.96464521,0.0001212,2]
[333740684,1722433832710,-813.25800068,0.0001212,2]
[333740685,1722433832720,-154.80649189,0.0001212,2]
[333740687,1722433832730,-162.35915212,0.0001212,2]
[333740689,1722433832740,-403.4655861,0.0001212,2]
[333740690,1722433832752,-420.0,0.00012202,2]
[333740691,1722433832762,-420.0,0.00012215,2]
[333740692,1722433832772,-166.666666,0.00012241,2]
[333740693,1722433832782,-1446.37499243,0.000129,2]
[333740694,1722433832791,-176.833451,0.00012986,2]
[333740695,1722433832801,-587.0,0.00013407,2]
[333740696,1722433832811,-587.0,0.00013437,2]
[333740697,1722433832820,-5310.19888947,0.00013457,2]
[333740698,1722433832830,-3486.67115206,0.00013489,2]
[333740700,1722433832840,-500.0,0.000135,2]
[333740701,1722433832850,-310.31,0.000135,2]
[333740702,1722433832859,-500.0,0.000135,2]
[333740703,1722433832870,-500.0,0.000135,2]
[333740704,1722433832880,-500.0,0.000135,2]
[333740705,1722433832890,-311.22,0.000135,2]
[333740706,1722433832900,-1000.0,0.00013529,2]
[333740707,1722433832910,-3291.95879794,0.00013585,2]
[333740708,1722433832919,-3291.95879791,0.00013588,2]
[333740709,1722433832929,-3291.95879791,0.00013592,2]
[333740710,1722433832939,-3291.95879791,0.00013595,2]
[333740711,1722433832949,-780.55646389,0.00013595,2]
[333740712,1722433832960,-3291.95879791,0.00013598,2]
[333740713,1722433832970,-1044.98607078,0.00013598,2]
[333740714,1722433832981,-357.3445534,0.00013601,2]
[333740715,1722433832990,-5000.0,0.0001364,2]
[333740716,1722433833003,-153.06260706,0.00013653,2]
[333740717,1722433833016,-3044.29721814,0.00013676,2]
[333740720,1722433838280,-414.61537087,0.0001212,2]
[333740721,1722433838290,-154.69833824,0.0001212,2]
[333740722,1722433838300,-663.78880537,0.0001212,2]
[333740723,1722433838310,-13392.25768136,0.00013676,2]
[333740724,1722433838319,-1518.65,0.00013685,2]
[333740725,1722433838328,-1518.65,0.00013685,2]
[333740726,1722433838338,-1442.00540225,0.00013686,5]
[333740727,1722433838347,-7613.16830191,0.00013686,2]
[333740736,1722433840435,-59389.33355783,0.00013686,2]
[333740738,1722433840461,-536.601356,0.00013686,2]
[333740740,1722433840486,-3490.44702973,0.00013686,2]
[333740792,1722433843327,-567.70648841,0.0001212,2]
[333740794,1722433843337,-2438.59536776,0.00013686,2]
[333740877,1722433846446,-1044.61804724,0.00013686,2]
[333740878,1722433846482,-652.4,0.00013686,2]
[333740881,1722433896571,268.7616648,9.999e-05,2]
[333740883,1722433909080,304.57230194,9.999e-05,2]
[333740887,1722433981194,150.71364408,0.00020213,120]
[333740888,1722434015556,199.92984198,9.999e-05,2]
[333740889,1722434032651,250.0,9.999e-05,2]
[333740890,1722434047256,493.97936365,9.999e-05,2]
[333740891,1722434048242,403.4655861,9.999e-05,2]
[333740892,1722434077954,157.6164939,9.999e-05,2]
[333740894,1722434085921,404.47935249,9.999e-05,2]
[333740897,1722434345765,155.60250398,9.999e-05,2]
[333740898,1722434349863,180.41738233,9.999e-05,2]
[333740899,1722434352329,287.53104938,0.0001,2]
[333740900,1722434354269,201.40749574,9.999e-05,2]
[333740901,1722434354681,521.99851068,9.999e-05,2]
[333740902,1722434354945,404.61971917,9.999e-05,2]
[333740903,1722434359625,341.98933379,9.999e-05,2]
[333740904,1722434360273,494.06495644,9.999e-05,2]
[333740905,1722434362537,600.34409866,9.999e-05,2]
[333740906,1722434362875,154.68290005,9.999e-05,2]
[333740907,1722434364559,154.68290005,9.999e-05,2]
[333740908,1722434365079,519.4219267,9.999e-05,2]
[333740909,1722434366419,154.68290005,9.999e-05,2]
[333740910,1722434366457,158.7501413,9.999e-05,2]
[333740911,1722434368006,154.68290005,9.999e-05,2]
[333740912,1722434368726,343.0251587,9.999e-05,2]
[333740913,1722434368817,664.01384986,9.999e-05,2]
[333740914,1722434370269,494.06495644,9.999e-05,2]
[333740915,1722434371488,282.30115475,9.999e-05,2]
[333740916,1722434374915,154.82195475,9.999e-05,2]
[333740917,1722434375207,154.80649189,9.999e-05,2]
[333740918,1722434378256,403.60280079,9.999e-05,2]
[333740919,1722434380426,309.43745822,9.999e-05,2]
[333740920,1722434381112,330.73988639,9.999e-05,2]
[333740921,1722434381318,154.68290005,9.999e-05,2]
[333740922,1722434383721,157.24600443,9.999e-05,2]
[333740923,1722434384245,155.24326506,9.999e-05,2]
[333740924,1722434385863,154.68290005,9.999e-05,2]
[333740925,1722434388131,319.61774118,9.999e-05,2]
[333740926,1722434390747,288.28494131,9.999e-05,2]
[333740927,1722434394859,154.68290005,9.999e-05,2]
[333740928,1722434397887,154.68290005,0.0001,2]
[333740929,1722434398654,256.95351998,9.999e-05,2]
[333740930,1722434399789,154.82195475,9.999e-05,2]
[333740931,1722434400424,240.59744191,9.999e-05,2]
[333740932,1722434402161,154.68290005,9.999e-05,2]
[333740933,1722434404140,319.61774118,9.999e-05,2]
[333740934,1722434407580,154.82195475,9.999e-05,2]
[333740935,1722434412761,154.68290005,0.0001,2]
[333740936,1722434413658,162.17557523,9.999e-05,2]
[333740937,1722434415860,154.68290005,9.999e-05,2]
[333740938,1722434444848,180.41738233,9.999e-05,2]
[333740939,1722434454704,521.99851068,9.999e-05,2]
[333740940,1722434459873,154.68290005,9.999e-05,2]
[333740941,1722434460775,201.40749574,9.999e-05,2]
[333740942,1722434465568,154.68290005,9.999e-05,2]
[333740943,1722434469942,394.9684779,9.999e-05,2]
[333740944,1722434470259,286.23587139,9.999e-05,2]
[333740945,1722434471063,519.4219267,9.999e-05,2]
[333740946,1722434471190,154.68290005,9.999e-05,2]
[333740947,1722434476689,306.20026734,9.999e-05,2]
[333740948,1722434477781,201.40749574,9.999e-05,2]
[333740949,1722434478772,164.08814494,9.999e-05,2]
[333740950,1722434479548,664.01384986,9.999e-05,2]
[333740951,1722434488849,154.68290005,9.999e-05,2]
[333740952,1722434495016,216.97028465,9.999e-05,2]
[333740953,1722434498155,154.88371365,9.999e-05,2]
[333740954,1722434501055,519.4219267,9.999e-05,2]
[333740955,1722434516134,318.85793034,9.999e-05,2]
[333740956,1722434518700,519.82114387,9.999e-05,2]
[333740957,1722434518837,154.68290005,9.999e-05,2]